fUSD/lending_fUSD_20241030
["ID","MTS","AMOUNT","RATE_DAILY","PERIOD"]
[341035633,1730295046046,-500.0,0.00033049,5]
[341035634,1730295046056,-500.0,0.00033049,5]
[341035635,1730295046066,-500.0,0.00033049,5]
[341035636,1730295046075,-1185.91,0.00033049,5]
[341035637,1730295046085,-299.33979623,0.00033049,5]
[341035638,1730295046095,-500.0,0.00033049,5]
[341035639,1730295046104,-500.0,0.00033049,5]
[341035640,1730295046118,-500.0,0.00033049,5]
[341035641,1730295046127,-500.0,0.00033049,5]
[341035642,1730295046136,-500.0,0.00033049,5]
[341035643,1730295046146,-500.0,0.00033049,5]
[341035644,1730295046155,-170.9905647,0.00033049,5]
[341035645,1730295046164,-500.0,0.00033049,5]
[341035646,1730295046174,-500.0,0.00033049,5]
[341035647,1730295046183,-500.0,0.00033049,5]
[341035648,1730295046192,-657.84,0.00033049,5]
[341035649,1730295046202,-537.63872628,0.00033049,5]
[341035650,1730295046212,-500.0,0.00033049,5]
[341035651,1730295046222,-500.0,0.00033049,5]
[341035652,1730295046232,-538.23,0.00033049,5]
[341035653,1730295046242,-500.0,0.00033049,5]
[341035654,1730295046258,-500.0,0.00033049,5]
[341035656,1730295046268,-2000.0,0.00033049,120]
[341035657,1730295046277,-1309.86,0.00033049,5]
[341035658,1730295046287,-500.0,0.00033049,5]
[341035659,1730295046297,-906.85,0.00033049,5]
[341035660,1730295046306,-500.0,0.00033049,5]
[341035661,1730295046316,-500.0,0.00033049,5]
[341035662,1730295046328,-500.0,0.00033049,5]
[341035663,1730295046338,-500.0,0.00033049,5]
[341035664,1730295046348,-500.0,0.00033049,5]
[341035665,1730295046358,-500.0,0.00033049,5]
[341035666,1730295046370,-500.0,0.00033049,5]
[341035667,1730295046379,-805.6,0.00033049,5]
[341035668,1730295046388,-674.48,0.00033049,5]
[341035669,1730295046398,-233.89165641,0.00033049,5]
[341035670,1730295046606,-266.10834359,0.00033049,5]
[341035671,1730295046619,-827.48,0.00033049,5]
[341035672,1730295046629,-1145.2,0.00033049,5]
[341035673,1730295046638,-500.0,0.00033049,5]
[341035674,1730295046648,-500.0,0.00033049,5]
[341035675,1730295046657,-202.948873,0.00033049,7]
[341035676,1730295046666,-202.948873,0.00033049,7]
[341035677,1730295046676,-1134.12,0.00033049,5]
[341035678,1730295046685,-500.0,0.00033049,5]
[341035679,1730295046695,-500.0,0.00033049,5]
[341035680,1730295046704,-500.0,0.00033049,5]
[341035681,1730295046714,-680.88,0.00033049,5]
[341035682,1730295046724,-757.63,0.00033049,5]
[341035683,1730295046734,-151.0,0.00033049,7]
[341035684,1730295046745,-866.98,0.00033049,5]
[341035685,1730295046754,-500.0,0.00033049,5]
[341035686,1730295046764,-500.0,0.00033049,5]
[341035687,1730295046774,-595.87,0.00033049,5]
[341035688,1730295046784,-569.46,0.00033049,5]
[341035689,1730295046793,-847.37,0.00033049,5]
[341035690,1730295046802,-766.94,0.00033049,5]
[341035691,1730295046812,-500.0,0.00033049,5]
[341035692,1730295046821,-891.96,0.00033049,5]
[341035693,1730295046830,-500.0,0.00033049,5]
[341035694,1730295046839,-500.0,0.00033049,5]
[341035695,1730295046849,-949.53,0.00033049,5]
[341035696,1730295046859,-500.0,0.00033049,5]
[341035697,1730295046870,-500.0,0.00033049,5]
[341035698,1730295046880,-500.0,0.00033049,5]
[341035699,1730295046889,-21793.4439,0.0003305,2]
[341035700,1730295046899,-884.42393313,0.0003305,2]
[341035701,1730295046911,-36877.77436687,0.0003305,2]
[341035702,1730295046921,-1000.0,0.0003305,2]
[341035703,1730295046931,-397.0,0.000331,18]
[341035704,1730295046941,-214.04679078,0.00033149,2]
[341035705,1730295046951,-573.18,0.00033149,5]
[341035706,1730295046960,-500.0,0.00033149,5]
[341035707,1730295046970,-500.0,0.00033149,5]
[341035708,1730295046979,-500.0,0.00033149,5]
[341035709,1730295046989,-1134.25,0.00033149,5]
[341035710,1730295046998,-500.0,0.00033149,5]
[341035711,1730295047008,-500.0,0.00033149,5]
[341035712,1730295047017,-500.0,0.00033149,5]
[341035713,1730295047026,-926.97,0.00033149,5]
[341035714,1730295047036,-500.0,0.00033149,5]
[341035715,1730295047045,-500.0,0.00033149,5]
[341035716,1730295047055,-634.34,0.00033149,5]
[341035717,1730295047065,-500.0,0.00033149,5]
[341035718,1730295047074,-395.50962053,0.00033149,5]
[341035719,1730295047084,-500.0,0.00033149,5]
[341035720,1730295047094,-940.82,0.00033149,5]
[341035721,1730295047103,-512.18492153,0.00033149,5]
[341035722,1730295047114,-500.0,0.00033149,5]
[341035723,1730295047124,-500.0,0.00033149,5]
[341035724,1730295047133,-500.0,0.00033149,5]
[341035725,1730295047143,-500.0,0.00033149,5]
[341035726,1730295047152,-500.0,0.00033149,5]
[341035727,1730295047162,-500.0,0.00033149,5]
[341035728,1730295047171,-610.99,0.00033149,5]
[341035729,1730295047181,-500.0,0.00033149,5]
[341035730,1730295047191,-500.0,0.00033149,5]
[341035731,1730295047200,-522.75,0.00033149,5]
[341035732,1730295047210,-500.0,0.00033149,5]
[341035733,1730295047221,-200.0,0.00033149,5]
[341035734,1730295047230,-500.0,0.00033149,5]
[341035735,1730295047240,-500.0,0.00033149,5]
[341035736,1730295047254,-500.0,0.00033149,5]
[341035737,1730295047263,-500.0,0.00033149,5]
[341035738,1730295047273,-500.0,0.00033149,5]
[341035739,1730295047282,-500.0,0.00033149,5]
[341035740,1730295047292,-500.0,0.00033149,5]
[341035741,1730295047302,-500.0,0.00033149,5]
[341035742,1730295047312,-500.0,0.00033149,5]
[341035743,1730295047322,-500.0,0.00033149,5]
[341035744,1730295047333,-500.0,0.00033149,5]
[341035745,1730295047342,-500.0,0.00033149,5]
[341035746,1730295047352,-500.0,0.00033149,5]
[341035747,1730295047361,-500.0,0.00033149,5]
[341035748,1730295047373,-500.0,0.00033149,5]
[341035749,1730295047382,-161.76916818,0.00033149,5]
[341035750,1730295047392,-500.0,0.00033149,5]
[341035751,1730295047401,-500.0,0.00033149,5]
[341035752,1730295047411,-500.0,0.00033149,5]
[341035753,1730295047420,-500.0,0.00033149,5]
[341035754,1730295047429,-500.0,0.00033149,5]
[341035755,1730295047440,-279.78343894,0.00033149,5]
[341035756,1730295047449,-500.0,0.00033149,5]
[341035757,1730295047460,-500.0,0.00033149,5]
[341035758,1730295047469,-500.0,0.00033149,5]
[341035759,1730295047479,-500.0,0.00033149,5]
[341035760,1730295047488,-500.0,0.00033149,5]
[341035761,1730295047498,-500.0,0.00033149,5]
[341035762,1730295047507,-427.82766089,0.00033149,5]
[341035763,1730295047517,-500.0,0.00033149,5]
[341035764,1730295047527,-500.0,0.00033149,5]
[341035765,1730295047536,-564.33749772,0.00033149,5]
[341035766,1730295047545,-500.0,0.00033149,5]
[341035767,1730295047559,-500.0,0.00033149,5]
[341035768,1730295047568,-194.66243754,0.00033149,5]
[341035769,1730295047577,-500.0,0.00033149,5]
[341035770,1730295047587,-500.0,0.00033149,5]
[341035771,1730295047596,-534.46,0.00033149,5]
[341035772,1730295047606,-500.0,0.00033149,5]
[341035773,1730295047616,-500.0,0.00033149,5]
[341035774,1730295047626,-500.0,0.00033149,5]
[341035775,1730295047635,-500.0,0.00033149,5]
[341035776,1730295047644,-500.0,0.00033149,5]
[341035777,1730295047654,-500.0,0.00033149,5]
[341035778,1730295047664,-516.23219627,0.00033149,5]
[341035779,1730295047674,-500.0,0.00033149,5]
[341035780,1730295047683,-536.41001976,0.00033149,5]
[341035781,1730295047693,-500.0,0.00033149,5]
[341035782,1730295047702,-441.91651757,0.00033149,5]
[341035783,1730295047712,-500.0,0.00033149,5]
[341035784,1730295047721,-500.0,0.00033149,5]
[341035785,1730295047731,-500.0,0.00033149,5]
[341035786,1730295047741,-500.0,0.00033149,5]
[341035787,1730295047750,-500.0,0.00033149,5]
[341035788,1730295047760,-500.0,0.00033149,5]
[341035789,1730295047769,-500.0,0.00033149,5]
[341035790,1730295047779,-500.0,0.00033149,5]
[341035791,1730295047788,-603.47,0.00033149,5]
[341035792,1730295047797,-512.44271967,0.00033149,5]
[341035793,1730295047806,-500.0,0.00033149,5]
[341035794,1730295047816,-500.0,0.00033149,5]
[341035795,1730295047825,-500.0,0.00033149,5]
[341035796,1730295047834,-500.0,0.00033149,5]
[341035797,1730295047843,-500.0,0.00033149,5]
[341035798,1730295047853,-500.0,0.00033149,5]
[341035799,1730295047863,-500.0,0.00033149,5]
[341035800,1730295047872,-507.02,0.00033149,5]
[341035801,1730295047881,-500.0,0.00033149,5]
[341035802,1730295047891,-500.0,0.00033149,5]
[341035803,1730295047901,-550.58872736,0.00033149,5]
[341035804,1730295047910,-524.64047403,0.00033149,5]
[341035805,1730295047920,-558.12967537,0.00033149,5]
[341035806,1730295048067,-500.0,0.00033149,5]
[341035807,1730295048078,-302.71268131,0.00033149,5]
[341035808,1730295048087,-500.0,0.00033149,5]
[341035809,1730295048097,-500.0,0.00033149,5]
[341035810,1730295048107,-500.0,0.00033149,5]
[341035811,1730295048116,-500.0,0.00033149,5]
[341035812,1730295048126,-514.51812553,0.00033149,5]
[341035813,1730295048135,-500.0,0.00033149,5]
[341035814,1730295048144,-500.0,0.00033149,5]
[341035815,1730295048153,-577.42884664,0.00033149,5]
[341035816,1730295048163,-500.0,0.00033149,5]
[341035817,1730295048172,-500.0,0.00033149,5]
[341035818,1730295048181,-500.0,0.00033149,5]
[341035819,1730295048190,-500.0,0.00033149,5]
[341035820,1730295048200,-500.0,0.00033149,5]
[341035821,1730295048209,-500.0,0.00033149,5]
[341035822,1730295048219,-629.40701159,0.00033149,5]
[341035823,1730295048228,-500.0,0.00033149,5]
[341035824,1730295048237,-500.0,0.00033149,5]
[341035825,1730295048247,-500.0,0.00033149,5]
[341035826,1730295048261,-113.53720192,0.00033149,5]
[341035827,1730295048274,-386.46279808,0.00033149,5]
[341035828,1730295048283,-500.0,0.00033149,5]
[341035829,1730295048292,-500.0,0.00033149,5]
[341035830,1730295048302,-38.13767736,0.00033149,5]
[341035831,1730295048314,-461.86232264,0.00033149,5]
[341035832,1730295048323,-500.0,0.00033149,5]
[341035833,1730295048334,-500.0,0.00033149,5]
[341035834,1730295048343,-500.0,0.00033149,5]
[341035835,1730295048353,-352.21731488,0.00033149,5]
[341035836,1730295048362,-500.0,0.00033149,7]
[341035837,1730295048378,-500.0,0.00033149,5]
[341035838,1730295048387,-514.09571962,0.00033149,5]
[341035839,1730295048396,-500.0,0.00033149,5]
[341035840,1730295048406,-795.94,0.00033149,5]
[341035841,1730295048416,-500.0,0.00033149,5]
[341035842,1730295048425,-500.0,0.00033149,5]
[341035843,1730295048434,-500.0,0.00033149,5]
[341035844,1730295048444,-500.0,0.00033149,5]
[341035845,1730295048453,-535.81,0.00033149,5]
[341035846,1730295048463,-348.88497862,0.00033149,5]
[341035847,1730295048473,-500.0,0.00033149,5]
[341035848,1730295048482,-566.76,0.00033149,5]
[341035849,1730295048492,-564.64,0.00033149,5]
[341035850,1730295048501,-500.0,0.00033149,5]
[341035851,1730295048510,-500.0,0.00033149,5]
[341035852,1730295048519,-500.0,0.00033149,5]
[341035853,1730295048529,-500.0,0.00033149,5]
[341035854,1730295048538,-500.0,0.00033149,5]
[341035855,1730295048548,-500.0,0.00033149,5]
[341035856,1730295048557,-500.0,0.00033149,5]
[341035857,1730295048566,-500.0,0.00033149,5]
[341035858,1730295048575,-605.63,0.00033149,5]
[341035859,1730295048585,-500.0,0.00033149,5]
[341035860,1730295048594,-500.0,0.00033149,5]
[341035861,1730295048604,-615.2688742,0.00033149,5]
[341035862,1730295048613,-522.53431085,0.00033149,5]
[341035863,1730295048623,-500.0,0.00033149,5]
[341035864,1730295048632,-500.0,0.00033149,5]
[341035865,1730295048641,-853.61,0.00033149,2]
[341035866,1730295048651,-500.0,0.00033149,5]
[341035867,1730295048660,-500.0,0.00033149,5]
[341035868,1730295048669,-202.948873,0.00033149,7]
[341035869,1730295048678,-500.0,0.00033149,5]
[341035870,1730295048687,-202.948873,0.00033149,7]
[341035871,1730295048698,-500.0,0.00033149,5]
[341035872,1730295048708,-500.0,0.00033149,5]
[341035873,1730295048717,-500.0,0.00033149,5]
[341035874,1730295048727,-641.9924393,0.00033149,5]
[341035875,1730295048736,-500.0,0.00033149,5]
[341035876,1730295048746,-500.0,0.00033149,5]
[341035877,1730295048755,-226.94042002,0.00033149,5]
[341035878,1730295048764,-981.15,0.00033149,5]
[341035879,1730295048773,-505.87829796,0.00033149,5]
[341035880,1730295048782,-583.34727769,0.00033149,5]
[341035881,1730295048792,-566.56503198,0.00033149,5]
[341035882,1730295048802,-500.0,0.00033149,5]
[341035883,1730295048811,-500.0,0.00033149,5]
[341035884,1730295048821,-188.42682326,0.00033149,5]
[341035885,1730295048831,-562.38741375,0.00033149,5]
[341035886,1730295048841,-500.0,0.00033149,5]
[341035887,1730295048850,-500.0,0.00033149,5]
[341035888,1730295048860,-500.0,0.00033149,5]
[341035889,1730295048869,-500.0,0.00033149,5]
[341035890,1730295048878,-500.0,0.00033149,5]
[341035891,1730295048888,-500.0,0.00033149,5]
[341035892,1730295048897,-500.0,0.00033149,5]
[341035893,1730295048908,-500.0,0.00033149,5]
[341035894,1730295048917,-500.0,0.00033149,5]
[341035895,1730295048926,-545.2445294,0.0003315,5]
[341035896,1730295048936,-555.44424158,0.0003315,5]
[341035897,1730295048945,-300.0,0.0003315,5]
[341035898,1730295048955,-500.0,0.0003315,5]
[341035899,1730295048965,-500.0,0.0003315,5]
[341035900,1730295048974,-500.0,0.0003315,5]
[341035901,1730295048984,-172.68874813,0.0003315,5]
[341035902,1730295048993,-500.0,0.0003315,5]
[341035903,1730295049002,-579.69843868,0.0003315,5]
[341035904,1730295049011,-367.91707144,0.0003315,5]
[341035905,1730295049024,-132.08292856,0.0003315,5]
[341035906,1730295049034,-500.0,0.0003315,5]
[341035907,1730295049045,-500.0,0.0003315,5]
[341035908,1730295049055,-500.0,0.0003315,5]
[341035909,1730295049065,-161.71707144,0.0003315,5]
[341035911,1730295157501,163.35,0.00015342,2]
[341035912,1730295302079,300.0,0.00019725,2]
[341035913,1730295361438,300.0,0.00019725,2]
[341035919,1730295399133,550.0,0.00015,2]
[341035921,1730295834422,156.37,0.00015342,2]
[341035941,1730296232055,-156.37,0.00024031,2]
[341035943,1730296232066,-314.42475,0.0003,2]
[341035944,1730296232075,-314.42475,0.0003,2]
[341035945,1730296232085,-645.85,0.00030042,2]
[341035946,1730296232095,-8166.66898773,0.0003117,2]
[341035948,1730296232104,-425.65851507,0.0003117,2]
[341035961,1730296238107,-167.05148493,0.0003117,2]
[341035962,1730296238116,-250.0,0.00031249,2]
[341035963,1730296238127,-6664.72,0.00031257,2]
[341035964,1730296238136,-85.78891507,0.00031264,7]
[341035965,1730296238183,-64.21108493,0.00031264,7]
[341035966,1730296238193,-606.4979821,0.00031357,2]
[341035967,1730296238321,-1236.47518438,0.00031357,2]
[341036039,1730296243643,-9655.93683352,0.00031357,2]
[341036040,1730296243653,-158.21,0.00031413,2]
[341036041,1730296243663,-2322.5279,0.00031434,2]
[341036042,1730296243673,-790.91,0.00031448,2]
[341036043,1730296243686,-23900.0,0.00031505,2]
[341036044,1730296243695,-161.92,0.00031524,10]
[341036045,1730296243705,-2044.7633,0.00031534,2]
[341036046,1730296243715,-84864.11372627,0.00031534,2]
[341036047,1730296243726,-860.40400003,0.00031534,2]
[341036048,1730296243738,-1077.73634172,0.00031534,2]
[341036049,1730296243750,-2195.5152835,0.00031534,2]
[341036050,1730296243771,-7164.59618001,0.00031534,2]
[341036051,1730296243784,-251.0923415,0.00031534,2]
[341036052,1730296243869,-3586.54212697,0.00031534,2]
[341036053,1730296243879,-288.0,0.00031561,2]
[341036054,1730296243889,-506.62284625,0.00031722,15]
[341036055,1730296243899,-159.09,0.0003192,30]
[341036056,1730296243908,-1138.0,0.00031923,2]
[341036057,1730296243917,-506.62284617,0.00032075,15]
[341036058,1730296243926,-668.5,0.00032105,120]
[341036059,1730296243936,-176.28,0.00032166,2]
[341036061,1730296243946,-402.44,0.00032252,2]
[341036062,1730296243956,-645.85,0.00032306,2]
[341036063,1730296243966,-506.62284617,0.00032428,15]
[341036064,1730296243976,-15780.3006814,0.000325,15]
[341036065,1730296243986,-156.37,0.0003272,2]
[341036066,1730296243996,-496.22081513,0.00032775,2]
[341036067,1730296244005,-500.0,0.00032775,2]
[341036068,1730296244015,-16983.20476018,0.00032776,2]
[341036069,1730296244091,-961.45332631,0.00032776,2]
[341036131,1730296246310,-1432.88062352,0.00032776,2]
[341036132,1730296246330,-777.49668999,0.00032776,2]
[341036133,1730296246340,-2500.0,0.00032776,2]
[341036134,1730296246350,-377.6486431,0.00032776,2]
[341036135,1730296246359,-506.62284617,0.00032781,15]
[341036136,1730296246369,-200.0,0.000328,11]
[341036137,1730296246381,-500.0,0.00032876,7]
[341036138,1730296246391,-500.0,0.00032876,5]
[341036139,1730296246401,-500.0,0.00032876,5]
[341036140,1730296246411,-500.0,0.00032876,5]
[341036141,1730296246420,-500.0,0.00032876,5]
[341036142,1730296246430,-324.23182074,0.00032876,5]
[341036143,1730296246450,-175.76817926,0.00032876,5]
[341036144,1730296246459,-183.23182074,0.00032876,5]
[341036145,1730296246471,-316.76817926,0.00032876,5]
[341036146,1730296246480,-500.0,0.00032876,5]
[341036147,1730296246490,-500.0,0.00032876,5]
[341036148,1730296246499,-500.0,0.00032876,5]
[341036149,1730296246509,-500.0,0.00032876,5]
[341036150,1730296246519,-506.66174811,0.00032876,5]
[341036151,1730296246529,-578.33,0.00032876,5]
[341036152,1730296246539,-500.0,0.00032876,5]
[341036154,1730296246548,-500.0,0.00032876,5]
[341036155,1730296246558,-500.0,0.00032876,5]
[341036157,1730296246568,-500.0,0.00032876,5]
[341036158,1730296246577,-536.31737303,0.00032876,5]
[341036159,1730296246587,-500.0,0.00032876,5]
[341036160,1730296246596,-575.85309867,0.00032876,5]
[341036161,1730296246606,-500.0,0.00032876,5]
[341036162,1730296246616,-583.66103962,0.00032876,5]
[341036163,1730296246628,-500.0,0.00032876,5]
[341036164,1730296246638,-500.0,0.00032876,5]
[341036165,1730296246647,-500.0,0.00032876,5]
[341036166,1730296246657,-500.0,0.00032876,5]
[341036167,1730296246666,-500.0,0.00032876,5]
[341036168,1730296246679,-181.84259302,0.00032876,5]
[341036169,1730296246688,-500.0,0.00032876,5]
[341036170,1730296246698,-500.0,0.00032876,5]
[341036171,1730296246707,-500.0,0.00032876,5]
[341036172,1730296246718,-500.0,0.00032876,5]
[341036173,1730296246728,-500.0,0.00032876,5]
[341036174,1730296246737,-500.0,0.00032876,5]
[341036175,1730296246747,-500.0,0.00032876,5]
[341036176,1730296246756,-579.75997489,0.00032876,5]
[341036177,1730296246766,-500.0,0.00032876,5]
[341036178,1730296246775,-500.0,0.00032876,5]
[341036179,1730296246785,-500.0,0.00032876,5]
[341036180,1730296246794,-500.0,0.00032876,5]
[341036181,1730296246803,-500.0,0.00032876,5]
[341036182,1730296246812,-734.98,0.00032876,5]
[341036183,1730296246821,-854.8,0.00032876,5]
[341036184,1730296246830,-500.0,0.00032876,5]
[341036185,1730296246840,-500.0,0.00032876,5]
[341036186,1730296246849,-500.0,0.00032876,5]
[341036187,1730296246858,-500.0,0.00032876,5]
[341036188,1730296246867,-500.0,0.00032876,5]
[341036189,1730296246878,-246.02332528,0.00032876,5]
[341036190,1730296246887,-909.97,0.00032876,5]
[341036191,1730296246897,-500.0,0.00032876,5]
[341036192,1730296246906,-500.0,0.00032876,5]
[341036193,1730296246916,-559.1833215,0.00032876,5]
[341036194,1730296246925,-500.0,0.00032876,5]
[341036195,1730296246934,-500.0,0.00032876,5]
[341036196,1730296246943,-500.0,0.00032876,5]
[341036197,1730296246953,-500.0,0.00032876,5]
[341036198,1730296246962,-608.94,0.00032876,5]
[341036199,1730296246971,-500.0,0.00032876,5]
[341036200,1730296246980,-500.0,0.00032876,5]
[341036201,1730296246990,-500.0,0.00032876,5]
[341036202,1730296246999,-500.0,0.00032876,5]
[341036203,1730296247008,-500.0,0.00032876,5]
[341036204,1730296247017,-500.0,0.00032876,5]
[341036205,1730296247027,-500.0,0.00032876,5]
[341036206,1730296247035,-500.0,0.00032876,5]
[341036207,1730296247044,-500.0,0.00032876,5]
[341036208,1730296247053,-668.24,0.00032876,5]
[341036209,1730296247062,-500.0,0.00032876,5]
[341036210,1730296247071,-1376.99,0.00032876,5]
[341036211,1730296247081,-500.0,0.00032876,5]
[341036212,1730296247091,-500.0,0.00032876,5]
[341036213,1730296247100,-500.0,0.00032876,5]
[341036214,1730296247111,-585.55,0.00032876,5]
[341036215,1730296247119,-500.0,0.00032876,5]
[341036216,1730296247130,-1012.22,0.00032876,5]
[341036217,1730296247139,-688.91,0.00032876,5]
[341036218,1730296247148,-500.0,0.00032876,7]
[341036219,1730296247158,-500.0,0.00032876,5]
[341036220,1730296247167,-500.0,0.00032876,5]
[341036221,1730296247177,-500.0,0.00032876,5]
[341036222,1730296247186,-1009.1,0.00032876,5]
[341036223,1730296247195,-500.0,0.00032876,5]
[341036224,1730296247205,-500.0,0.00032876,5]
[341036225,1730296247214,-500.0,0.00032876,5]
[341036226,1730296247223,-500.0,0.00032876,5]
[341036227,1730296247233,-500.0,0.00032876,5]
[341036228,1730296247244,-500.0,0.00032876,5]
[341036229,1730296247253,-500.0,0.00032876,5]
[341036230,1730296247262,-500.0,0.00032876,5]
[341036231,1730296247272,-554.60164154,0.00032876,5]
[341036232,1730296247281,-500.0,0.00032876,5]
[341036233,1730296247290,-500.0,0.00032876,5]
[341036234,1730296247300,-500.0,0.00032876,5]
[341036235,1730296247309,-500.0,0.00032876,5]
[341036236,1730296247318,-762.78,0.00032876,5]
[341036237,1730296247328,-514.05432238,0.00032876,5]
[341036238,1730296247337,-500.0,0.00032876,5]
[341036239,1730296247346,-521.21,0.00032876,5]
[341036240,1730296247356,-1814.5,0.00032876,5]
[341036241,1730296247365,-500.0,0.00032876,5]
[341036242,1730296247376,-527.26667726,0.00032876,5]
[341036243,1730296247385,-500.0,0.00032876,5]
[341036244,1730296247394,-500.0,0.00032876,5]
[341036245,1730296247404,-580.39,0.00032876,5]
[341036246,1730296247413,-500.0,0.00032876,5]
[341036247,1730296247424,-500.0,0.00032876,5]
[341036248,1730296247433,-513.48,0.00032876,5]
[341036249,1730296247443,-763.37,0.00032876,5]
[341036250,1730296247452,-500.0,0.00032876,5]
[341036251,1730296247461,-543.15,0.00032876,5]
[341036252,1730296247471,-500.0,0.00032876,5]
[341036253,1730296247480,-699.81,0.00032876,5]
[341036254,1730296247490,-500.0,0.00032876,5]
[341036255,1730296247652,-822.18,0.00032876,5]
[341036256,1730296247663,-1331.58,0.00032876,5]
[341036257,1730296247673,-877.93,0.00032876,5]
[341036258,1730296247683,-500.0,0.00032876,5]
[341036259,1730296247695,-591.96,0.00032876,5]
[341036260,1730296247704,-644.09003821,0.00032876,5]
[341036261,1730296247714,-870.68,0.00032876,5]
[341036262,1730296247723,-500.0,0.00032876,5]
[341036263,1730296247735,-694.55,0.00032876,5]
[341036264,1730296247744,-180.44723329,0.00032876,5]
[341036265,1730296247753,-500.0,0.00032876,5]
[341036266,1730296247763,-464.22413427,0.00032876,5]
[341036267,1730296247773,-500.0,0.00032876,5]
[341036268,1730296247783,-759.68,0.00032876,5]
[341036269,1730296247793,-500.0,0.00032876,5]
[341036270,1730296247802,-500.0,0.00032876,5]
[341036271,1730296247812,-500.0,0.00032876,5]
[341036272,1730296247821,-500.0,0.00032876,5]
[341036273,1730296247831,-500.0,0.00032876,5]
[341036274,1730296247840,-500.0,0.00032876,5]
[341036275,1730296247850,-500.0,0.00032876,5]
[341036276,1730296247859,-2000.0,0.00032876,5]
[341036277,1730296247869,-818.04,0.00032876,2]
[341036278,1730296247882,-150.0,0.00032876,5]
[341036279,1730296247892,-500.0,0.00032876,5]
[341036280,1730296247901,-617.51,0.00032876,5]
[341036281,1730296247910,-500.0,0.00032876,5]
[341036282,1730296247920,-500.0,0.00032876,5]
[341036283,1730296247929,-500.0,0.00032876,5]
[341036284,1730296247939,-929.03,0.00032876,5]
[341036285,1730296247949,-512.89027123,0.00032876,5]
[341036286,1730296247959,-500.0,0.00032876,5]
[341036287,1730296247968,-500.0,0.00032876,5]
[341036288,1730296247978,-500.0,0.00032876,5]
[341036289,1730296247987,-500.0,0.00032876,5]
[341036290,1730296247997,-500.0,0.00032876,5]
[341036291,1730296248007,-516.34106751,0.00032876,5]
[341036292,1730296248016,-500.0,0.00032876,5]
[341036293,1730296248026,-500.0,0.00032876,5]
[341036294,1730296248036,-940.27,0.00032876,5]
[341036295,1730296248045,-500.0,0.00032876,5]
[341036296,1730296248055,-1238.62,0.00032876,5]
[341036297,1730296248064,-402.8135253,0.00032876,5]
[341036298,1730296248074,-528.84599727,0.00032876,5]
[341036299,1730296248084,-500.0,0.00032876,5]
[341036300,1730296248095,-500.0,0.00032876,5]
[341036301,1730296248104,-500.0,0.00032876,5]
[341036302,1730296248114,-503.33223348,0.00032876,5]
[341036303,1730296248124,-607.57874978,0.00032876,5]
[341036304,1730296248133,-500.0,0.00032876,5]
[341036305,1730296248143,-518.55302486,0.00032876,5]
[341036306,1730296248153,-3389.0,0.00032876,5]
[341036307,1730296248163,-500.0,0.00032876,5]
[341036308,1730296248172,-511.37022493,0.00032876,5]